fUSD/lending_fUSD_20260529
["ID","MTS","AMOUNT","RATE_DAILY","PERIOD"]
[423245782,1779984642000,-500.0,0.00019726,2]
[423245783,1779984642000,-500.0,0.00019726,2]
[423245776,1779984642000,-577.41851285,0.00019726,2]
[423245774,1779984642000,-500.0,0.00019726,2]
[423245777,1779984642000,-500.0,0.00019726,2]
[423245781,1779984642000,-500.0,0.00019726,2]
[423245779,1779984642000,-500.0,0.00019726,2]
[423245778,1779984642000,-500.0,0.00019726,2]
[423245768,1779984642000,-250.0,0.00019726,2]
[423245757,1779984642000,-500.0,0.00019726,2]
[423245720,1779984642000,-500.0,0.00018512,2]
[423245752,1779984642000,-500.0,0.00019726,2]
[423245725,1779984642000,-2500.0,0.00019,2]
[423245721,1779984642000,-500.0,0.00018685,2]
[423245728,1779984642000,-703.0,0.0001915,2]
[423245727,1779984642000,-1146.0,0.00019061,2]
[423245780,1779984642000,-500.0,0.00019726,2]
[423245738,1779984642000,-500.0,0.00019726,2]
[423245730,1779984642000,-3000.0,0.00019178,2]
[423245762,1779984642000,-150.0,0.00019726,2]
[423245737,1779984642000,-500.0,0.00019726,2]
[423245733,1779984642000,-4915.97312576,0.00019507,2]
[423245734,1779984642000,-4431.14125192,0.00019562,2]
[423245731,1779984642000,-245.61,0.000194,2]
[423245732,1779984642000,-10255.98030226,0.00019507,2]
[423245736,1779984642000,-500.0,0.00019726,2]
[423245740,1779984642000,-500.0,0.00019726,2]
[423245735,1779984642000,-2000.0,0.00019584,2]
[423245746,1779984642000,-500.0,0.00019726,2]
[423245743,1779984642000,-500.0,0.00019726,2]
[423245747,1779984642000,-500.0,0.00019726,2]
[423245744,1779984642000,-500.0,0.00019726,2]
[423245745,1779984642000,-500.0,0.00019726,2]
[423245751,1779984642000,-500.0,0.00019726,2]
[423245741,1779984642000,-500.0,0.00019726,2]
[423245750,1779984642000,-500.0,0.00019726,2]
[423245739,1779984642000,-500.0,0.00019726,2]
[423245748,1779984642000,-500.0,0.00019726,2]
[423245749,1779984642000,-500.0,0.00019726,2]
[423245742,1779984642000,-500.0,0.00019726,2]
[423245843,1779984643000,-151.0,0.00020116,2]
[423245833,1779984643000,-151.0,0.00020116,2]
[423245832,1779984643000,-151.0,0.00020116,2]
[423245819,1779984643000,-8423.0,0.0002,2]
[423245818,1779984643000,-5592.08,0.0002,2]
[423245821,1779984643000,-1046.0,0.0002,2]
[423245825,1779984643000,-2000.0,0.0002002,2]
[423245823,1779984643000,-2000.0,0.0002001,2]
[423245829,1779984643000,-151.0,0.00020116,2]
[423245815,1779984643000,-156.0,0.0002,2]
[423245831,1779984643000,-151.0,0.00020116,2]
[423245834,1779984643000,-151.0,0.00020116,2]
[423245859,1779984643000,-151.0,0.00020116,2]
[423245835,1779984643000,-174.61919141,0.00020116,2]
[423245839,1779984643000,-743.50770149,0.00020116,2]
[423245847,1779984643000,-151.0,0.00020116,2]
[423245849,1779984643000,-209.40437684,0.00020116,2]
[423245837,1779984643000,-578.20924308,0.00020116,2]
[423245838,1779984643000,-151.0,0.00020116,2]
[423245836,1779984643000,-151.0,0.00020116,2]
[423245841,1779984643000,-151.0,0.00020116,2]
[423245851,1779984643000,-200.0,0.00020116,2]
[423245862,1779984643000,-152.0,0.00020116,2]
[423245861,1779984643000,-500.0,0.00020116,2]
[423245863,1779984643000,-2080.17592889,0.00020116,2]
[423245830,1779984643000,-200.0,0.00020116,2]
[423245845,1779984643000,-151.0,0.00020116,2]
[423245828,1779984643000,-279.9045709,0.00020116,2]
[423245811,1779984643000,-199.0,0.0002,2]
[423245826,1779984643000,-2881.803606,0.0002003,2]
[423245852,1779984643000,-500.0,0.00020116,2]
[423245784,1779984643000,-500.0,0.00019726,2]
[423245785,1779984643000,-502.58686962,0.00019726,2]
[423245787,1779984643000,-423.97873733,0.00019726,2]
[423245786,1779984643000,-500.0,0.00019726,2]
[423245788,1779984643000,-500.0,0.00019726,2]
[423245789,1779984643000,-500.0,0.00019726,2]
[423245791,1779984643000,-247.48052146,0.00019726,2]
[423245790,1779984643000,-500.0,0.00019726,2]
[423245796,1779984643000,-886.43,0.00019968,2]
[423245795,1779984643000,-1401.62,0.00019968,2]
[423245792,1779984643000,-175.0,0.00019835,2]
[423245827,1779984643000,-1422.71021531,0.00020036,2]
[423245793,1779984643000,-442.404731,0.00019835,2]
[423245798,1779984643000,-400.0,0.0002,2]
[423245797,1779984643000,-10069.25521327,0.0002,2]
[423245802,1779984643000,-1929.0,0.0002,2]
[423245809,1779984643000,-2005.0,0.0002,2]
[423245812,1779984643000,-1081.0,0.0002,2]
[423245813,1779984643000,-392.0,0.0002,2]
[423245800,1779984643000,-159.8477614,0.0002,2]
[423245801,1779984643000,-169.0,0.0002,2]
[423245814,1779984643000,-1353.0,0.0002,2]
[423245805,1779984643000,-381.0,0.0002,2]
[423245807,1779984643000,-2000.0,0.0002,2]
[423245816,1779984643000,-221.0,0.0002,2]
[423245794,1779984643000,-158.15,0.00019874,2]
[423245864,1779984643000,-9552.16786547,0.00020116,2]
[423245856,1779984643000,-721.12765534,0.00020116,2]
[423245905,1779984643000,-152.0,0.00020116,2]
[423245893,1779984643000,-152.0,0.00020116,2]
[423245894,1779984643000,-151.0,0.00020116,2]
[423245900,1779984643000,-151.0,0.00020116,2]
[423245898,1779984643000,-151.0,0.00020116,2]
[423245897,1779984643000,-152.0,0.00020116,2]
[423245896,1779984643000,-266.08633524,0.00020116,2]
[423245901,1779984643000,-275.93152964,0.00020116,2]
[423245895,1779984643000,-500.0,0.00020116,2]
[423245902,1779984643000,-151.0,0.00020116,2]
[423245907,1779984643000,-151.0,0.00020116,2]
[423245906,1779984643000,-286.14099624,0.00020116,2]
[423245904,1779984643000,-151.0,0.00020116,2]
[423245891,1779984643000,-256.59241585,0.00020116,2]
[423245912,1779984643000,-152.0,0.00020116,2]
[423245903,1779984643000,-500.0,0.00020116,2]
[423245908,1779984643000,-296.7282131,0.00020116,2]
[423245910,1779984643000,-500.0,0.00020116,2]
[423245911,1779984643000,-151.0,0.00020116,2]
[423245913,1779984643000,-277.48760411,0.00020116,2]
[423245914,1779984643000,-152.0,0.00020116,2]
[423245915,1779984643000,-314.43498383,0.00020166,2]
[423245916,1779984643000,-719.04747942,0.00020171,2]
[423245918,1779984643000,-745.65223615,0.00020226,2]
[423245917,1779984643000,-151.0,0.00020171,2]
[423245860,1779984643000,-151.0,0.00020116,2]
[423245919,1779984643000,-151.0,0.00020226,2]
[423245909,1779984643000,-152.0,0.00020116,2]
[423245892,1779984643000,-151.0,0.00020116,2]
[423245899,1779984643000,-500.0,0.00020116,2]
[423245890,1779984643000,-500.0,0.00020116,2]
[423245866,1779984643000,-151.0,0.00020116,2]
[423245850,1779984643000,-151.0,0.00020116,2]
[423245858,1779984643000,-693.39197629,0.00020116,2]
[423245854,1779984643000,-200.0,0.00020116,2]
[423245865,1779984643000,-151.0,0.00020116,2]
[423245868,1779984643000,-1428.38747117,0.00020116,2]
[423245869,1779984643000,-500.0,0.00020116,2]
[423245867,1779984643000,-151.0,0.00020116,2]
[423245870,1779984643000,-209.40437684,0.00020116,2]
[423245888,1779984643000,-152.0,0.00020116,2]
[423245872,1779984643000,-152.0,0.00020116,2]
[423245873,1779984643000,-151.0,0.00020116,2]
[423245871,1779984643000,-221.88543241,0.00020116,2]
[423245875,1779984643000,-500.0,0.00020116,2]
[423245874,1779984643000,-151.0,0.00020116,2]
[423245877,1779984643000,-152.0,0.00020116,2]
[423245882,1779984643000,-151.0,0.00020116,2]
[423245881,1779984643000,-238.60871557,0.00020116,2]
[423245876,1779984643000,-230.09519341,0.00020116,2]
[423245884,1779984643000,-151.0,0.00020116,2]
[423245887,1779984643000,-151.0,0.00020116,2]
[423245886,1779984643000,-247.43723804,0.00020116,2]
[423245885,1779984643000,-500.0,0.00020116,2]
[423245879,1779984643000,-151.0,0.00020116,2]
[423245889,1779984643000,-151.0,0.00020116,2]
[423245880,1779984643000,-500.0,0.00020116,2]
[423245878,1779984643000,-151.0,0.00020116,2]
[423245883,1779984643000,-152.0,0.00020116,2]
[423245960,1779984644000,-2157.14243826,0.00020664,2]
[423245966,1779984644000,-200.0,0.00020782,2]
[423245964,1779984644000,-997.16350561,0.00020666,2]
[423245969,1779984644000,-4431.14125192,0.00020897,2]
[423245961,1779984644000,-9905.59807649,0.00020664,2]
[423245956,1779984644000,-771.01748644,0.00020664,2]
[423245958,1779984644000,-200.0,0.00020664,2]
[423245962,1779984644000,-1481.2378076,0.00020664,2]
[423245957,1779984644000,-217.15233878,0.00020664,2]
[423245967,1779984644000,-191.4554308,0.00020846,2]
[423245955,1779984644000,-181.08010149,0.00020664,2]
[423245959,1779984644000,-200.0,0.00020664,2]
[423245968,1779984644000,-350.0,0.00020855,2]
[423245994,1779984644000,-392.0,0.00021,2]
[423245970,1779984644000,-1000.0,0.00020951,2]
[423245973,1779984644000,-1000.0,0.00020951,2]
[423245965,1779984644000,-151.0,0.00020666,2]
[423245972,1779984644000,-1000.0,0.00020951,2]
[423245974,1779984644000,-1000.0,0.00020951,2]
[423245975,1779984644000,-1000.0,0.00020951,2]
[423245976,1779984644000,-1040.24438291,0.00020951,2]
[423245977,1779984644000,-2000.0,0.00020951,2]
[423245979,1779984644000,-152.0,0.00020959,7]
[423245983,1779984644000,-169.0,0.00021,2]
[423245988,1779984644000,-381.0,0.00021,2]
[423245990,1779984644000,-199.0,0.00021,2]
[423245954,1779984644000,-200.0,0.00020664,2]
[423245971,1779984644000,-1000.0,0.00020951,2]
[423245963,1779984644000,-217.15233878,0.00020664,2]
[423245921,1779984644000,-151.0,0.00020281,2]
[423245953,1779984644000,-290.26104002,0.00020664,2]
[423245920,1779984644000,-773.24136889,0.00020281,2]
[423245923,1779984644000,-801.85129954,0.00020336,2]
[423245922,1779984644000,-3099.50449341,0.00020322,2]
[423245925,1779984644000,-2915.8,0.00020381,2]
[423245935,1779984644000,-894.19061325,0.00020501,2]
[423245924,1779984644000,-151.0,0.00020336,2]
[423245937,1779984644000,-151.0,0.00020501,2]
[423245930,1779984644000,-151.0,0.00020446,2]
[423245926,1779984644000,-583.77,0.0002039,2]
[423245929,1779984644000,-862.28603014,0.00020446,2]
[423245928,1779984644000,-151.0,0.00020391,2]
[423245932,1779984644000,-1000.0,0.000205,2]
[423245927,1779984644000,-831.51979762,0.00020391,2]
[423245952,1779984644000,-151.0,0.00020611,2]
[423245933,1779984644000,-315.0,0.000205,2]
[423245939,1779984644000,-350.0,0.00020505,2]
[423245942,1779984644000,-151.0,0.00020556,2]
[423245944,1779984644000,-150.0,0.0002058,2]
[423245943,1779984644000,-161.25,0.00020559,2]
[423245940,1779984644000,-175.0,0.0002052,2]
[423245941,1779984644000,-927.27566594,0.00020556,2]
[423245951,1779984644000,-961.58486558,0.00020611,2]
[423245950,1779984644000,-150.0,0.0002058,2]
[423245949,1779984644000,-150.0,0.0002058,2]
[423245945,1779984644000,-150.0,0.0002058,2]
[423245946,1779984644000,-150.0,0.0002058,2]
[423245947,1779984644000,-150.0,0.0002058,2]
[423245948,1779984644000,-150.0,0.0002058,2]
[423245931,1779984644000,-309.0,0.000205,2]
[423245985,1779984644000,-1929.0,0.00021,2]
[423246000,1779984644000,-156.0,0.00021,2]
[423245992,1779984644000,-1081.0,0.00021,2]
[423246035,1779984644000,-194.72792766,0.0002176,2]
[423246032,1779984644000,-2000.0,0.00021751,2]
[423246034,1779984644000,-200.0,0.0002176,2]
[423246036,1779984644000,-829.12830338,0.0002176,2]
[423246040,1779984644000,-2319.72410669,0.0002176,2]
[423246039,1779984644000,-10652.17309792,0.0002176,2]
[423246037,1779984644000,-200.0,0.0002176,2]
[423246038,1779984644000,-200.0,0.0002176,2]
[423246046,1779984644000,-2482.55645869,0.00021918,2]
[423246043,1779984644000,-350.0,0.00021794,2]
[423246051,1779984644000,-800.0,0.00021918,2]
[423246055,1779984644000,-800.0,0.00021918,2]
[423246044,1779984644000,-175.0,0.0002189,2]
[423246045,1779984644000,-603.59971906,0.00021898,2]
[423246047,1779984644000,-3080.73,0.00021918,2]
[423246049,1779984644000,-800.0,0.00021918,2]
[423246048,1779984644000,-5000.0,0.00021918,2]
[423246053,1779984644000,-800.0,0.00021918,2]
[423246052,1779984644000,-800.0,0.00021918,2]
[423246054,1779984644000,-800.0,0.00021918,2]
[423246050,1779984644000,-800.0,0.00021918,2]
[423246057,1779984644000,-200.0,0.00021921,2]
[423246058,1779984644000,-333.83,0.00021935,2]
[423246059,1779984644000,-2000.0,0.00021951,2]
[423246060,1779984644000,-350.0,0.00021982,2]
[423246056,1779984644000,-800.0,0.00021918,2]
[423245982,1779984644000,-152.0,0.00020959,7]
[423246041,1779984644000,-1592.87721992,0.0002176,2]
[423246042,1779984644000,-5592.08,0.00021779,2]
[423246061,1779984644000,-583.77,0.00021999,2]
[423246030,1779984644000,-2000.0,0.00021551,2]
[423245997,1779984644000,-1353.0,0.00021,2]
[423246002,1779984644000,-221.0,0.00021,2]
[423246004,1779984644000,-1046.0,0.00021,2]
[423246006,1779984644000,-152.0,0.00021001,7]
[423246008,1779984644000,-2000.0,0.00021151,2]
[423246009,1779984644000,-175.0,0.00021205,2]
[423246007,1779984644000,-152.0,0.00021001,7]
[423246011,1779984644000,-200.0,0.00021212,2]
[423246033,1779984644000,-312.13772435,0.0002176,2]
[423246019,1779984644000,-283.81243547,0.00021212,2]
[423246010,1779984644000,-301.0006985,0.00021212,2]
[423246017,1779984644000,-10272.10520532,0.00021212,2]
[423246016,1779984644000,-200.0,0.00021212,2]
[423246012,1779984644000,-187.78006524,0.00021212,2]
[423246018,1779984644000,-2236.95670847,0.00021212,2]
[423246014,1779984644000,-214.70531978,0.00021212,2]
[423246028,1779984644000,-156.587,0.00021485,2]
[423246015,1779984644000,-200.0,0.00021212,2]
[423246029,1779984644000,-245.61,0.000215,2]
[423246027,1779984644000,-3099.50449341,0.00021467,2]
[423246021,1779984644000,-1401.62,0.00021273,2]
[423246026,1779984644000,-254.53782702,0.00021401,2]
[423246024,1779984644000,-2000.0,0.00021351,2]
[423246031,1779984644000,-2000.0,0.000217,2]
[423246022,1779984644000,-886.43,0.00021273,2]
[423246023,1779984644000,-500.0,0.00021324,2]
[423246020,1779984644000,-1536.04360648,0.00021212,2]
[423246013,1779984644000,-799.54513344,0.00021212,2]
[423246025,1779984644000,-6474.79,0.0002137,2]
[423246103,1779984645000,-151.0,0.00022308,2]
[423246096,1779984645000,-151.0,0.00022308,2]
[423246098,1779984645000,-154.297011,0.00022308,2]
[423246095,1779984645000,-151.0,0.00022308,2]
[423246097,1779984645000,-151.0,0.00022308,2]
[423246094,1779984645000,-151.0,0.00022308,2]
[423246105,1779984645000,-3093.650277,0.00022308,2]
[423246099,1779984645000,-151.0,0.00022308,2]
[423246106,1779984645000,-3093.650277,0.00022308,2]
[423246104,1779984645000,-151.0,0.00022308,2]
[423246093,1779984645000,-151.0,0.00022308,2]
[423246100,1779984645000,-151.0,0.00022308,2]
[423246115,1779984645000,-246.725308,0.00022308,2]
[423246101,1779984645000,-151.0,0.00022308,2]
[423246108,1779984645000,-3093.650277,0.00022308,2]
[423246111,1779984645000,-151.0,0.00022308,2]
[423246120,1779984645000,-602.99895168,0.00022407,2]
[423246119,1779984645000,-602.99895168,0.00022407,2]
[423246110,1779984645000,-151.0,0.00022308,2]
[423246107,1779984645000,-3093.650277,0.00022308,2]
[423246109,1779984645000,-151.0,0.00022308,2]
[423246117,1779984645000,-2915.8,0.00022353,2]
[423246118,1779984645000,-602.99895169,0.00022407,2]
[423246113,1779984645000,-246.725308,0.00022308,2]
[423246112,1779984645000,-246.725308,0.00022308,2]
[423246088,1779984645000,-2405.55389863,0.00022308,2]
[423246102,1779984645000,-167.242247,0.00022308,2]
[423246085,1779984645000,-200.0,0.00022308,2]
[423246073,1779984645000,-156.0,0.00022,2]
[423246082,1779984645000,-200.0,0.00022308,2]
[423246114,1779984645000,-246.725308,0.00022308,2]
[423246065,1779984645000,-450.0,0.00022,2]
[423246062,1779984645000,-583.77,0.00021999,2]
[423246066,1779984645000,-169.0,0.00022,2]
[423246064,1779984645000,-1549.42451778,0.00022,2]
[423246063,1779984645000,-360985.08297501,0.00022,4]
[423246070,1779984645000,-1081.0,0.00022,2]
[423246069,1779984645000,-199.0,0.00022,2]
[423246067,1779984645000,-1929.0,0.00022,2]
[423246068,1779984645000,-381.0,0.00022,2]
[423246072,1779984645000,-1353.0,0.00022,2]
[423246078,1779984645000,-6064.0,0.0002204,2]
[423246071,1779984645000,-392.0,0.00022,2]
[423246074,1779984645000,-538.59,0.00022,2]
[423246075,1779984645000,-221.0,0.00022,2]
[423246077,1779984645000,-3637.0,0.0002204,2]
[423246076,1779984645000,-1046.0,0.00022,2]
[423246080,1779984645000,-4431.14125192,0.00022231,2]
[423246091,1779984645000,-151.0,0.00022308,2]
[423246090,1779984645000,-151.0,0.00022308,2]
[423246079,1779984645000,-243.97156775,0.0002211,2]
[423246081,1779984645000,-323.68682015,0.00022308,2]
[423246092,1779984645000,-151.0,0.00022308,2]
[423246086,1779984645000,-252.23575488,0.00022308,2]
[423246089,1779984645000,-1651.81367706,0.00022308,2]
[423246084,1779984645000,-859.8060506,0.00022308,2]
[423246083,1779984645000,-201.93286098,0.00022308,2]
[423246087,1779984645000,-11046.30350254,0.00022308,2]
[423246116,1779984645000,-151.0,0.00022308,2]
[423246126,1779984645000,-162.380719,0.00022854,2]
[423246121,1779984645000,-5840.68,0.00022562,2]
[423246157,1779984645000,-156.53482385,0.00023,2]
[423246155,1779984645000,-377.631499,0.00022856,2]
[423246153,1779984645000,-377.631499,0.00022856,2]
[423246158,1779984645000,-169.0,0.00023,2]
[423246163,1779984645000,-392.0,0.00023,2]
[423246164,1779984645000,-1353.0,0.00023,2]
[423246160,1779984645000,-381.0,0.00023,2]
[423246162,1779984645000,-1081.0,0.00023,2]
[423246161,1779984645000,-199.0,0.00023,2]
[423246159,1779984645000,-1929.0,0.00023,2]
[423246166,1779984645000,-221.0,0.00023,2]
[423246165,1779984645000,-165.15482607,0.00023,2]
[423246156,1779984645000,-377.631499,0.00022856,2]
[423246176,1779984645000,-2586.85809042,0.00023404,2]
[423246167,1779984645000,-1046.0,0.00023,2]
[423246169,1779984645000,-151.0,0.00023368,2]
[423246171,1779984645000,-230.11867289,0.00023404,2]
[423246170,1779984645000,-151.0,0.00023368,2]
[423246172,1779984645000,-200.0,0.00023404,2]
[423246173,1779984645000,-217.15233878,0.00023404,2]
[423246175,1779984645000,-200.0,0.00023404,2]
[423246122,1779984645000,-25791.46,0.00022562,2]
[423246177,1779984645000,-1776.30922209,0.00023404,2]
[423246180,1779984645000,-5592.08,0.00023558,2]
[423246179,1779984645000,-330.0,0.00023555,5]
[423246178,1779984645000,-200.0,0.00023504,2]
[423246168,1779984645000,-1422.71021531,0.00023138,2]
[423246154,1779984645000,-377.631499,0.00022856,2]
[423246174,1779984645000,-924.60877283,0.00023404,2]
[423246150,1779984645000,-151.0,0.00022856,2]
[423246152,1779984645000,-151.0,0.00022856,2]
[423246124,1779984645000,-3099.50449341,0.00022611,2]
[423246125,1779984645000,-200.0,0.00022713,2]
[423246123,1779984645000,-1882.75,0.00022562,2]
[423246129,1779984645000,-200.0,0.00022856,2]
[423246139,1779984645000,-578.533476,0.00022856,2]
[423246130,1779984645000,-209.40437684,0.00022856,2]
[423246131,1779984645000,-891.61887448,0.00022856,2]
[423246128,1779984645000,-335.66323249,0.00022856,2]
[423246137,1779984645000,-578.533476,0.00022856,2]
[423246138,1779984645000,-578.533476,0.00022856,2]
[423246135,1779984645000,-1712.93078311,0.00022856,2]
[423246134,1779984645000,-2494.55939288,0.00022856,2]
[423246127,1779984645000,-599.60298507,0.00022855,2]
[423246132,1779984645000,-200.0,0.00022856,2]
[423246136,1779984645000,-578.533476,0.00022856,2]
[423246151,1779984645000,-151.0,0.00022856,2]
[423246149,1779984645000,-151.0,0.00022856,2]
[423246148,1779984645000,-151.0,0.00022856,2]
[423246144,1779984645000,-328.19836,0.00022856,2]
[423246147,1779984645000,-328.19836,0.00022856,2]
[423246146,1779984645000,-328.19836,0.00022856,2]
[423246133,1779984645000,-3222.57835985,0.00022856,2]
[423246143,1779984645000,-649.126519,0.00022856,2]
[423246141,1779984645000,-649.126519,0.00022856,2]
[423246145,1779984645000,-328.19836,0.00022856,2]
[423246142,1779984645000,-649.126519,0.00022856,2]
[423246140,1779984645000,-649.126519,0.00022856,2]
[423246200,1779984646000,-500.0,0.00024136,2]
[423246204,1779984646000,-266.26264465,0.00024223,2]
[423246205,1779984646000,-200.0,0.00024296,2]
[423246208,1779984646000,-233.5188934,0.000245,2]
[423246209,1779984646000,-200.0,0.000245,2]
[423246203,1779984646000,-299.99,0.00024174,7]
[423246207,1779984646000,-200.0,0.000245,2]
[423246215,1779984646000,-150.133,0.00024589,2]
[423246217,1779984646000,-150.0,0.00024589,2]
[423246210,1779984646000,-2781.82699784,0.000245,2]
[423246225,1779984646000,-1412.213,0.00024589,2]
[423246218,1779984646000,-167.235,0.00024589,2]
[423246228,1779984646000,-188.59,0.00024658,2]
[423246220,1779984646000,-150.0,0.00024589,2]
[423246221,1779984646000,-150.0,0.00024589,2]
[423246227,1779984646000,-1225.0,0.00024589,2]
[423246226,1779984646000,-525.0,0.00024589,2]
[423246224,1779984646000,-928.0,0.00024589,2]
[423246222,1779984646000,-150.458,0.00024589,2]
[423246223,1779984646000,-3549.0,0.00024589,2]
[423246206,1779984646000,-2915.8,0.00024324,2]
[423246219,1779984646000,-150.359,0.00024589,2]
[423246202,1779984646000,-9999.99,0.00024174,2]
[423246188,1779984646000,-2682.57183977,0.00023952,2]
[423246213,1779984646000,-289.487,0.00024589,2]
[423246229,1779984646000,-1066.62,0.00024658,2]
[423246181,1779984646000,-4431.14125192,0.00023566,2]
[423246185,1779984646000,-225.18697532,0.00023952,2]
[423246182,1779984646000,-3099.50449341,0.00023756,2]
[423246184,1779984646000,-200.0,0.00023952,2]
[423246187,1779984646000,-200.0,0.00023952,2]
[423246183,1779984646000,-336.34,0.00023887,15]
[423246186,1779984646000,-470.1002098,0.00023952,2]
[423246189,1779984646000,-1842.0326633,0.00023952,2]
[423246199,1779984646000,-1046.0,0.00024,2]
[423246190,1779984646000,-500.0,0.00024,2]
[423246198,1779984646000,-221.0,0.00024,2]
[423246196,1779984646000,-392.0,0.00024,2]
[423246197,1779984646000,-1353.0,0.00024,2]
[423246193,1779984646000,-381.0,0.00024,2]
[423246191,1779984646000,-169.0,0.00024,2]
[423246192,1779984646000,-1929.0,0.00024,2]
[423246194,1779984646000,-199.0,0.00024,2]
[423246195,1779984646000,-1081.0,0.00024,2]
[423246211,1779984646000,-1910.18787185,0.000245,2]
[423246212,1779984646000,-150.0,0.00024589,2]
[423246214,1779984646000,-150.549,0.00024589,2]
[423246236,1779984646000,-170.359846,0.00024658,2]
[423246266,1779984646000,-1130.45375195,0.00025,2]
[423246230,1779984646000,-445.94882,0.00024658,2]
[423246257,1779984646000,-1176.94101003,0.00024999,10]
[423246261,1779984646000,-583.77,0.00024999,2]
[423246260,1779984646000,-583.77,0.00024999,2]
[423246258,1779984646000,-583.77,0.00024999,2]
[423246259,1779984646000,-583.77,0.00024999,2]
[423246279,1779984646000,-2307.73880796,0.00025,2]
[423246263,1779984646000,-144058.47271306,0.00025,2]
[423246265,1779984646000,-200.0,0.00025,2]
[423246274,1779984646000,-7234.32424484,0.00025,2]
[423246269,1779984646000,-1686.39177885,0.00025,2]
[423246264,1779984646000,-250.0,0.00025,2]
[423246267,1779984646000,-210.56846515,0.00025,2]
[423246268,1779984646000,-1811.37446814,0.00025,2]
[423246271,1779984646000,-619.82909925,0.00025,2]
[423246272,1779984646000,-3088.4174624,0.00025,2]
[423246270,1779984646000,-540.0,0.00025,2]
[423246273,1779984646000,-21971.06800962,0.00025,2]
[423246275,1779984646000,-2233.05957326,0.00025,2]
[423246277,1779984646000,-141874.10968256,0.00025,2]
[423246276,1779984646000,-169.8000364,0.00025,2]
[423246278,1779984646000,-1739.336524,0.00025,2]
[423246256,1779984646000,-9999.99,0.0002498,2]
[423246262,1779984646000,-583.99950274,0.00024999,2]
[423246237,1779984646000,-170.359846,0.00024658,2]
[423246253,1779984646000,-1615.37,0.0002498,2]
[423246238,1779984646000,-1000.0,0.00024658,2]
[423246234,1779984646000,-170.359846,0.00024658,2]
[423246232,1779984646000,-445.94882,0.00024658,2]
[423246233,1779984646000,-445.94882,0.00024658,2]
[423246235,1779984646000,-170.359846,0.00024658,2]
[423246239,1779984646000,-500.0,0.00024658,7]
[423246240,1779984646000,-219.09,0.00024658,2]
[423246242,1779984646000,-4431.14125192,0.000249,2]
[423246241,1779984646000,-218.02,0.00024658,2]
[423246250,1779984646000,-24999.99,0.0002498,2]
[423246231,1779984646000,-445.94882,0.00024658,2]
[423246245,1779984646000,-4999.99,0.0002498,2]
[423246243,1779984646000,-3099.50449341,0.000249,2]
[423246254,1779984646000,-3151.32,0.0002498,2]
[423246255,1779984646000,-2593.79,0.0002498,2]
[423246251,1779984646000,-9999.99,0.0002498,2]
[423246248,1779984646000,-1558.57,0.0002498,2]
[423246252,1779984646000,-999.99,0.0002498,2]
[423246249,1779984646000,-8237.98,0.0002498,2]
[423246247,1779984646000,-9999.99,0.0002498,2]
[423246244,1779984646000,-538.59,0.00024928,7]
[423246246,1779984646000,-150.99,0.0002498,2]
[423246280,1779984647000,-1658.73017535,0.00025,2]
[423246282,1779984647000,-209.38700883,0.00025,2]
[423246281,1779984647000,-932.0,0.0002216,2]